fUSD/lending_fUSD_20250503
["ID","MTS","AMOUNT","RATE_DAILY","PERIOD"]
[359667255,1746234640970,-450.0,0.00019698,2]
[359667256,1746234640979,-702.43,0.00019698,2]
[359667257,1746234640989,-450.0,0.00019698,2]
[359667258,1746234640998,-450.0,0.00019698,2]
[359667259,1746234641008,-450.0,0.00019698,2]
[359667260,1746234641017,-450.0,0.00019698,2]
[359667261,1746234641027,-450.0,0.00019698,2]
[359667262,1746234641036,-2263.03,0.00019698,2]
[359667263,1746234641045,-450.0,0.00019698,2]
[359667264,1746234641055,-450.0,0.00019698,2]
[359667265,1746234641064,-509.65,0.00019698,2]
[359667266,1746234641073,-1248.57,0.00019698,2]
[359667267,1746234641084,-450.0,0.00019698,2]
[359667268,1746234641093,-561.86,0.00019698,2]
[359667269,1746234641102,-514.92,0.00019698,2]
[359667270,1746234641112,-450.0,0.00019698,2]
[359667271,1746234641121,-450.0,0.00019698,2]
[359667272,1746234641131,-450.0,0.00019698,2]
[359667273,1746234641140,-1394.08,0.00019698,2]
[359667274,1746234641149,-450.0,0.00019698,2]
[359667275,1746234641159,-999.0,0.00019698,2]
[359667276,1746234641168,-450.0,0.00019698,2]
[359667277,1746234641177,-450.0,0.00019698,2]
[359667278,1746234641186,-1174.38,0.00019698,2]
[359667279,1746234641196,-662.33,0.00019698,2]
[359667280,1746234641205,-497.17,0.00019698,2]
[359667281,1746234641271,-450.0,0.00019698,2]
[359667282,1746234641282,-450.0,0.00019698,2]
[359667283,1746234641292,-450.0,0.00019698,2]
[359667284,1746234641301,-450.0,0.00019698,2]
[359667285,1746234641310,-520.7,0.00019698,2]
[359667286,1746234641319,-450.0,0.00019698,2]
[359667287,1746234641329,-450.0,0.00019698,2]
[359667288,1746234641337,-450.0,0.00019698,2]
[359667289,1746234641347,-450.0,0.00019698,2]
[359667290,1746234641355,-450.0,0.00019698,2]
[359667291,1746234641364,-536.15,0.00019698,2]
[359667292,1746234641373,-3246.98,0.00019698,2]
[359667293,1746234641384,-450.0,0.00019698,2]
[359667294,1746234641397,-450.0,0.00019698,2]
[359667295,1746234641406,-1791.16,0.00019698,2]
[359667296,1746234641415,-450.0,0.00019698,2]
[359667297,1746234641424,-5143.9,0.00019698,2]
[359667298,1746234641435,-1099.16,0.00019698,2]
[359667299,1746234641446,-450.0,0.00019698,2]
[359667300,1746234641455,-450.0,0.00019698,2]
[359667301,1746234641464,-525.76,0.00019698,2]
[359667302,1746234641475,-547.8,0.00019698,2]
[359667303,1746234641484,-846.87,0.00019698,2]
[359667304,1746234641494,-450.0,0.00019698,2]
[359667305,1746234641503,-539.28,0.00019698,2]
[359667306,1746234641513,-450.0,0.00019698,2]
[359667307,1746234641523,-795.83,0.00019698,2]
[359667308,1746234641533,-450.0,0.00019698,2]
[359667309,1746234641542,-450.0,0.00019698,2]
[359667310,1746234641552,-450.0,0.00019698,2]
[359667311,1746234641561,-1056.14,0.00019698,2]
[359667312,1746234641571,-450.0,0.00019698,2]
[359667313,1746234641582,-450.0,0.00019698,2]
[359667314,1746234641591,-450.0,0.00019698,2]
[359667315,1746234641601,-450.0,0.00019698,2]
[359667316,1746234641611,-598.52,0.00019698,2]
[359667317,1746234641621,-450.0,0.00019698,2]
[359667318,1746234641631,-450.0,0.00019698,2]
[359667319,1746234641641,-469.55,0.00019698,2]
[359667320,1746234641651,-450.0,0.00019698,2]
[359667321,1746234641661,-568.45,0.00019698,2]
[359667322,1746234641670,-450.0,0.00019698,2]
[359667323,1746234641680,-588.25,0.00019698,2]
[359667324,1746234641689,-1612.09,0.00019698,2]
[359667325,1746234641698,-1450.33,0.00019698,2]
[359667326,1746234641707,-559.17,0.00019698,2]
[359667327,1746234641716,-450.0,0.00019698,2]
[359667328,1746234641725,-450.0,0.00019698,2]
[359667329,1746234641734,-450.0,0.00019698,2]
[359667330,1746234641744,-450.0,0.00019698,2]
[359667331,1746234641753,-822.43,0.00019698,2]
[359667332,1746234641762,-521.69,0.00019698,2]
[359667333,1746234641772,-514.71,0.00019698,2]
[359667334,1746234641781,-450.0,0.00019698,2]
[359667335,1746234641791,-282.44482249,0.00019698,2]
[359667336,1746234641800,-450.0,0.00019698,2]
[359667337,1746234641809,-829.5,0.00019698,2]
[359667338,1746234641821,-450.0,0.00019698,2]
[359667339,1746234641834,-450.0,0.00019698,2]
[359667340,1746234641843,-450.0,0.00019698,2]
[359667341,1746234641853,-450.0,0.00019698,2]
[359667342,1746234641862,-454.35,0.00019698,2]
[359667343,1746234641871,-450.0,0.00019698,2]
[359667344,1746234641880,-450.0,0.00019698,2]
[359667345,1746234641889,-482.35312224,0.00019698,2]
[359667346,1746234641899,-450.0,0.00019698,2]
[359667347,1746234641908,-450.0,0.00019698,2]
[359667348,1746234641917,-450.0,0.00019698,2]
[359667349,1746234641926,-450.0,0.00019698,2]
[359667350,1746234641935,-226.52449439,0.00019699,2]
[359667351,1746234641944,-450.0,0.00019699,2]
[359667352,1746234641954,-450.0,0.00019699,2]
[359667353,1746234641963,-450.0,0.00019699,2]
[359667354,1746234641972,-450.0,0.00019699,2]
[359667355,1746234641982,-450.0,0.00019699,2]
[359667356,1746234641991,-479.878237,0.00019699,2]
[359667357,1746234642000,-450.0,0.00019699,2]
[359667358,1746234642010,-450.0,0.00019699,2]
[359667359,1746234642020,-450.0,0.00019699,2]
[359667360,1746234642029,-450.0,0.00019699,2]
[359667361,1746234642039,-450.0,0.00019699,2]
[359667362,1746234642048,-450.0,0.00019699,2]
[359667363,1746234642057,-450.0,0.00019699,2]
[359667364,1746234642066,-450.0,0.00019699,2]
[359667365,1746234642076,-450.0,0.00019699,2]
[359667366,1746234642086,-450.0,0.00019699,2]
[359667367,1746234642095,-450.0,0.00019699,2]
[359667368,1746234642105,-450.0,0.00019699,2]
[359667369,1746234642114,-808.39,0.00019699,2]
[359667370,1746234642124,-450.0,0.00019699,2]
[359667371,1746234642133,-461.78,0.00019699,2]
[359667372,1746234642143,-450.0,0.00019699,2]
[359667373,1746234642152,-450.0,0.00019699,2]
[359667374,1746234642161,-504.41864297,0.00019699,2]
[359667375,1746234642171,-450.0,0.00019699,2]
[359667376,1746234642180,-300.0,0.00019699,2]
[359667377,1746234642189,-237.0578191,0.00019699,2]
[359667378,1746234642198,-1000.13,0.00019699,2]
[359667379,1746234642208,-486.43,0.00019699,2]
[359667380,1746234642218,-450.0,0.00019699,2]
[359667381,1746234642227,-450.0,0.00019699,2]
[359667382,1746234642236,-602.77,0.00019699,2]
[359667383,1746234642245,-450.0,0.00019699,2]
[359667384,1746234642255,-450.0,0.00019699,2]
[359667385,1746234642265,-450.0,0.00019699,2]
[359667386,1746234642275,-450.0,0.00019699,2]
[359667387,1746234642284,-450.0,0.00019699,2]
[359667388,1746234642294,-793.97,0.00019699,2]
[359667389,1746234642303,-499.1,0.00019699,2]
[359667390,1746234642313,-450.0,0.00019699,2]
[359667391,1746234642323,-450.0,0.00019699,2]
[359667392,1746234642332,-450.0,0.00019699,2]
[359667393,1746234642342,-450.0,0.00019699,2]
[359667394,1746234642352,-450.0,0.00019699,2]
[359667395,1746234642362,-450.0,0.00019699,2]
[359667396,1746234642372,-450.0,0.00019699,2]
[359667397,1746234642382,-450.0,0.00019699,2]
[359667398,1746234642399,-450.0,0.00019699,2]
[359667399,1746234642408,-450.0,0.00019699,2]
[359667400,1746234642417,-450.0,0.00019699,2]
[359667401,1746234642427,-2649.17,0.00019699,2]
[359667402,1746234642438,-450.0,0.00019699,2]
[359667403,1746234642448,-450.0,0.00019699,2]
[359667404,1746234642457,-402.27436238,0.00019699,2]
[359667405,1746234642467,-450.0,0.00019699,2]
[359667406,1746234642476,-450.0,0.00019699,2]
[359667407,1746234642486,-450.0,0.00019699,2]
[359667408,1746234642496,-450.0,0.00019699,2]
[359667409,1746234642505,-450.0,0.00019699,2]
[359667410,1746234642515,-455.73,0.00019699,2]
[359667411,1746234642525,-1040.65,0.00019699,2]
[359667412,1746234642534,-450.0,0.00019699,2]
[359667414,1746234642544,-450.0,0.00019699,2]
[359667415,1746234642555,-1080.96,0.00019699,2]
[359667416,1746234642564,-154.18898431,0.00019699,2]
[359667417,1746234642574,-450.0,0.00019699,2]
[359667418,1746234642583,-450.0,0.00019699,2]
[359667419,1746234642592,-674.85,0.00019699,2]
[359667420,1746234642602,-450.0,0.00019699,2]
[359667421,1746234642611,-450.0,0.00019699,2]
[359667422,1746234642621,-494.28,0.00019699,2]
[359667423,1746234642630,-450.0,0.00019699,2]
[359667424,1746234642640,-450.0,0.00019699,2]
[359667425,1746234642649,-505.34,0.00019699,2]
[359667426,1746234642658,-450.0,0.00019699,2]
[359667427,1746234642668,-450.0,0.00019699,2]
[359667428,1746234642677,-450.0,0.00019699,2]
[359667430,1746234642687,-450.0,0.00019699,2]
[359667431,1746234642697,-450.0,0.00019699,2]
[359667432,1746234642707,-589.46,0.00019699,2]
[359667433,1746234642717,-450.0,0.00019699,2]
[359667434,1746234642727,-450.0,0.00019699,2]
[359667435,1746234642736,-170.87322706,0.00019699,2]
[359667437,1746234642746,-450.0,0.00019699,2]
[359667438,1746234642757,-320.94152436,0.00019699,2]
[359667439,1746234642766,-1074.78,0.00019699,2]
[359667440,1746234642775,-450.0,0.00019699,2]
[359667441,1746234642785,-450.0,0.00019699,2]
[359667442,1746234642794,-450.0,0.00019699,2]
[359667443,1746234642804,-573.05,0.00019699,2]
[359667444,1746234642813,-564.44,0.00019699,2]
[359667445,1746234642822,-1435.21,0.00019699,2]
[359667447,1746234642831,-450.0,0.00019699,2]
[359667448,1746234642841,-450.0,0.00019699,2]
[359667449,1746234642850,-711.13,0.00019699,2]
[359667450,1746234642859,-450.0,0.00019699,2]
[359667451,1746234642869,-450.0,0.00019699,2]
[359667452,1746234642878,-450.0,0.00019699,2]
[359667453,1746234642887,-501.85,0.00019699,2]
[359667454,1746234642897,-544.07,0.00019699,2]
[359667455,1746234642906,-550.01,0.00019699,2]
[359667456,1746234642915,-450.0,0.00019699,2]
[359667457,1746234642926,-219.28933762,0.00019699,2]
[359667458,1746234642935,-450.0,0.00019699,2]
[359667459,1746234642944,-450.0,0.00019699,2]
[359667460,1746234642953,-450.0,0.00019699,2]
[359667461,1746234642963,-697.43,0.00019699,2]
[359667462,1746234642972,-583.72,0.00019699,2]
[359667463,1746234642982,-450.0,0.00019699,2]
[359667464,1746234642991,-1718.82,0.00019699,2]
[359667465,1746234643000,-450.0,0.00019699,2]
[359667466,1746234643010,-740.43,0.00019699,2]
[359667467,1746234643019,-450.0,0.00019699,2]
[359667468,1746234643029,-583.93,0.00019699,2]
[359667469,1746234643038,-662.36,0.00019699,2]
[359667470,1746234643047,-485.23,0.00019699,2]
[359667472,1746234643056,-753.8,0.00019699,2]
[359667473,1746234643066,-1167.76,0.00019699,2]
[359667474,1746234643077,-450.0,0.00019699,2]
[359667475,1746234643087,-450.0,0.00019699,2]
[359667476,1746234643097,-450.0,0.00019699,2]
[359667477,1746234643108,-450.0,0.00019699,2]
[359667478,1746234643119,-450.0,0.00019699,2]
[359667479,1746234643129,-533.43,0.00019699,2]
[359667480,1746234643140,-991.81,0.00019699,2]
[359667481,1746234643150,-450.0,0.00019699,2]
[359667482,1746234643161,-1223.82,0.00019699,2]
[359667483,1746234643173,-450.0,0.00019699,2]
[359667484,1746234643184,-493.78,0.00019699,2]
[359667485,1746234643195,-602.0,0.00019699,2]
[359667486,1746234643208,-514.78,0.00019699,2]
[359667487,1746234643219,-1648.11,0.00019699,2]
[359667488,1746234643230,-630.72,0.00019699,2]
[359667489,1746234643241,-677.19,0.00019699,2]
[359667490,1746234643251,-450.0,0.00019699,2]
[359667492,1746234643274,-450.0,0.00019699,2]
[359667494,1746234643286,-450.0,0.00019699,2]
[359667495,1746234643297,-462.24,0.00019699,2]
[359667496,1746234643310,-975.09,0.00019699,2]
[359667497,1746234643322,-817.66,0.00019699,2]
[359667498,1746234643333,-450.0,0.00019699,2]
[359667499,1746234643344,-450.0,0.00019699,2]
[359667500,1746234643355,-450.0,0.00019699,2]
[359667501,1746234643365,-2480.01,0.00019699,2]
[359667502,1746234643376,-1086.99,0.00019699,2]
[359667503,1746234643388,-450.0,0.00019699,2]
[359667505,1746234643402,-743.64,0.00019699,2]
[359667506,1746234643412,-2237.6,0.00019699,2]
[359667507,1746234643421,-450.0,0.00019699,2]
[359667508,1746234643431,-711.15,0.00019699,2]
[359667509,1746234643441,-587.51,0.00019699,2]
[359667510,1746234643451,-1436.5727342,0.00019699,2]
[359667511,1746234643460,-500.0,0.00019708,2]
[359667512,1746234643470,-150.0,0.00019708,2]
[359667513,1746234643480,-500.0,0.00019708,2]
[359667514,1746234643490,-500.0,0.00019708,2]
[359667515,1746234643500,-500.0,0.00019708,2]
[359667516,1746234643517,-201.12892741,0.00019708,2]
[359667517,1746234643527,-150.0,0.00019708,2]
[359667518,1746234643537,-500.0,0.00019708,2]
[359667519,1746234643546,-202.7444423,0.00019708,2]
[359667520,1746234643560,-500.0,0.00019708,2]
[359667521,1746234643570,-150.0,0.00019708,2]
[359667522,1746234643579,-500.0,0.00019708,2]
[359667523,1746234643589,-150.0,0.00019708,2]
[359667524,1746234643599,-500.0,0.00019708,2]
[359667525,1746234643609,-500.0,0.00019708,2]
[359667526,1746234643619,-150.0,0.00019708,2]
[359667527,1746234643628,-500.0,0.00019708,2]
[359667528,1746234643638,-150.0,0.00019708,2]
[359667529,1746234643648,-500.0,0.00019708,2]
[359667530,1746234643658,-214.93,0.00019711,2]
[359667531,1746234643669,-40341.58024087,0.00019721,2]
[359667532,1746234643678,-1436.5727342,0.00019733,2]
[359667533,1746234643688,-150.0,0.00019753,2]
[359667534,1746234643697,-214.93,0.00019754,2]
[359667535,1746234643707,-150.0,0.00019764,2]
[359667536,1746234643717,-1323.75892798,0.00019764,2]
[359667537,1746234643727,-1436.5727342,0.00019766,2]
[359667538,1746234643737,-1323.75892792,0.00019779,2]
[359667539,1746234643747,-1323.75892792,0.00019794,2]
[359667540,1746234643759,-884.332903,0.00019799,2]
[359667541,1746234643770,-1436.5727342,0.000198,2]
[359667542,1746234643779,-11860.88526531,0.000198,2]
[359667543,1746234643789,-150.0,0.00019805,2]
[359667544,1746234643799,-500.0,0.00019808,2]
[359667545,1746234643809,-1323.75892792,0.00019809,2]
[359667546,1746234643819,-1323.75892792,0.00019824,2]
[359667547,1746234643828,-214.93,0.00019828,2]
[359667548,1746234643838,-1436.5727342,0.00019833,2]
[359667549,1746234643847,-12500.0,0.00019838,2]
[359667550,1746234643857,-1323.75892792,0.0001984,2]
[359667551,1746234643866,-2000.0,0.0001984,2]
[359667552,1746234643876,-200.0,0.0001984,2]
[359667553,1746234643885,-214.93,0.00019846,2]
[359667554,1746234643894,-12500.0,0.00019847,2]
[359667555,1746234643903,-214.93,0.00019853,2]
[359667556,1746234643913,-1323.75892792,0.00019855,2]
[359667557,1746234643922,-12500.0,0.00019856,2]
[359667558,1746234643933,-12500.0,0.00019856,2]
[359667559,1746234643942,-500.0,0.00019863,2]
[359667560,1746234643952,-450.0,0.00019864,2]
[359667561,1746234643961,-450.0,0.00019864,2]
[359667562,1746234643971,-3970.25,0.00019864,2]
[359667563,1746234643981,-450.0,0.00019864,2]
[359667564,1746234643990,-4697.65,0.00019864,2]
[359667565,1746234643999,-4277.79,0.00019864,2]
[359667566,1746234644012,-771.83,0.00019864,2]
[359667567,1746234644022,-450.0,0.00019864,2]
[359667568,1746234644032,-472.58,0.00019864,2]
[359667569,1746234644042,-4685.92,0.00019864,2]
[359667570,1746234644051,-84967.14,0.00019864,2]
[359667571,1746234644061,-450.0,0.00019864,2]
[359667572,1746234644070,-939.45,0.00019864,2]
[359667573,1746234644080,-27663.58,0.00019864,2]
[359667574,1746234644089,-450.0,0.00019864,2]
[359667575,1746234644098,-1819.99,0.00019864,2]
[359667576,1746234644108,-450.0,0.00019864,2]
[359667577,1746234644118,-552.81,0.00019864,2]
[359667578,1746234644127,-15495.7,0.00019864,2]
[359667579,1746234644137,-625.67874033,0.00019864,2]
[359667580,1746234644146,-12500.0,0.00019865,2]
[359667581,1746234644156,-12500.0,0.00019865,2]
[359667582,1746234644166,-1436.5727342,0.00019867,2]
[359667583,1746234644175,-22500.19348423,0.00019869,2]
[359667584,1746234644185,-1323.75892792,0.0001987,2]
[359667585,1746234644195,-155.96257902,0.00019872,2]
[359667586,1746234644204,-500.0,0.00019873,2]
[359667587,1746234644214,-500.0,0.00019873,2]
[359667588,1746234644223,-500.0,0.00019873,2]
[359667589,1746234644233,-175.63525688,0.00019873,2]
[359667590,1746234644242,-500.0,0.00019873,2]
[359667591,1746234644252,-500.0,0.00019873,2]
[359667592,1746234644265,-500.0,0.00019873,2]
[359667593,1746234644275,-500.0,0.00019873,2]
[359667594,1746234644284,-500.0,0.00019873,2]
[359667595,1746234644294,-162.22541034,0.00019873,2]
[359667596,1746234644303,-500.0,0.00019873,2]
[359667597,1746234644313,-500.0,0.00019873,2]
[359667598,1746234644322,-515.34803,0.00019873,2]
[359667599,1746234644331,-12500.0,0.00019874,2]
[359667600,1746234644341,-12500.0,0.00019874,2]
[359667601,1746234644350,-12500.0,0.00019882,2]
[359667602,1746234644359,-12500.0,0.00019882,2]
[359667603,1746234644369,-1323.75892792,0.00019885,2]
[359667604,1746234644378,-218.08039274,0.00019886,2]
[359667605,1746234644389,-151.0,0.00019887,2]
[359667606,1746234644401,-151.0,0.00019888,2]
[359667607,1746234644411,-218.08039273,0.0001989,2]
[359667608,1746234644421,-151.0,0.0001989,2]
[359667609,1746234644431,-151.0,0.0001989,2]
[359667610,1746234644441,-500.0,0.0001989,2]
[359667611,1746234644450,-151.0,0.00019891,2]
[359667612,1746234644460,-12500.0,0.00019891,2]
[359667613,1746234644469,-12500.0,0.00019891,2]
[359667614,1746234644479,-218.08039273,0.00019893,2]
[359667615,1746234644490,-218.08039273,0.00019897,2]
[359667616,1746234644504,-450.0,0.00019899,2]
[359667617,1746234644519,-165.7836071,0.000199,2]
[359667618,1746234644528,-12500.0,0.000199,2]
[359667619,1746234644537,-5738.9341,0.000199,2]
[359667620,1746234644546,-2743.91594593,0.000199,2]
[359667621,1746234644556,-12500.0,0.000199,2]
[359667622,1746234644566,-218.08039273,0.000199,2]
[359667623,1746234644575,-1436.5727342,0.000199,2]
[359667624,1746234644584,-1323.75892792,0.000199,2]
[359667625,1746234644594,-4833.26870977,0.000199,2]
[359667626,1746234644603,-16389.50728546,0.000199,2]
[359667627,1746234644612,-12153.95554885,0.00019912,2]
[359667628,1746234644622,-1231.202,0.00019932,2]
[359667629,1746234644634,-797.0,0.00019932,2]
[359667630,1746234644644,-2071.0,0.00019932,2]
[359667631,1746234644653,-581.0,0.00019932,2]
[359667632,1746234644663,-914.0,0.00019932,2]
[359667633,1746234644672,-550.0,0.00019932,2]
[359667634,1746234644682,-1449.0,0.00019932,2]
[359667635,1746234644692,-4006.0,0.00019932,2]
[359667636,1746234644701,-235.643,0.00019932,2]
[359667637,1746234644711,-266.653,0.00019932,2]
[359667638,1746234644722,-6753.0,0.00019932,2]
[359667639,1746234644732,-875.0,0.00019932,2]
[359667640,1746234644741,-878.0,0.00019932,2]
[359667641,1746234644751,-1494.73654477,0.0001994,2]
[359667642,1746234644763,-150.0,0.00019945,2]
[359667643,1746234644772,-245.714,0.00019967,2]
[359667644,1746234644781,-3695.479,0.0001997,2]
[359667645,1746234644791,-450.0,0.00019972,2]
[359667646,1746234644800,-450.0,0.00019972,2]
[359667647,1746234644809,-450.0,0.00019972,2]
[359667648,1746234644819,-450.0,0.00019972,2]
[359667649,1746234644828,-450.0,0.00019972,2]
[359667650,1746234644838,-450.0,0.00019972,2]
[359667651,1746234644847,-617.22,0.00019972,2]
[359667652,1746234644857,-450.0,0.00019972,2]
[359667653,1746234644867,-450.0,0.00019972,2]
[359667654,1746234644876,-450.0,0.00019972,2]
[359667655,1746234644885,-250.0,0.00019972,2]
[359667656,1746234644894,-450.0,0.00019972,2]
[359667657,1746234644904,-450.0,0.00019972,2]
[359667658,1746234644913,-450.0,0.00019972,2]
[359667659,1746234644922,-450.0,0.00019972,2]
[359667660,1746234644930,-450.0,0.00019972,2]
[359667661,1746234644940,-450.0,0.00019972,2]
[359667662,1746234644949,-450.0,0.00019972,2]
[359667663,1746234644958,-450.0,0.00019972,2]
[359667664,1746234644966,-450.0,0.00019972,2]
[359667665,1746234644975,-450.0,0.00019972,2]
[359667666,1746234644985,-450.0,0.00019972,2]
[359667667,1746234644994,-450.0,0.00019972,2]
[359667668,1746234645005,-450.0,0.00019972,2]
[359667669,1746234645015,-450.0,0.00019972,2]
[359667670,1746234645024,-450.0,0.00019972,2]
[359667671,1746234645033,-450.0,0.00019972,2]
[359667672,1746234645043,-450.0,0.00019972,2]
[359667673,1746234645053,-450.0,0.00019972,2]
[359667674,1746234645063,-871.55,0.00019972,2]
[359667675,1746234645073,-450.0,0.00019972,2]
[359667676,1746234645082,-450.0,0.00019972,2]
[359667677,1746234645091,-671.71,0.00019972,2]
[359667678,1746234645102,-585.564636,0.00019972,2]
[359667679,1746234645112,-450.0,0.00019972,2]
[359667680,1746234645124,-463.69,0.00019972,2]
[359667681,1746234645134,-450.0,0.00019972,2]
[359667682,1746234645144,-450.0,0.00019972,2]
[359667683,1746234645154,-460.60661297,0.00019972,2]
[359667684,1746234645163,-450.0,0.00019972,2]
[359667685,1746234645173,-450.0,0.00019972,2]
[359667686,1746234645182,-450.0,0.00019972,2]
[359667687,1746234645192,-836.983983,0.00019972,2]
[359667688,1746234645202,-450.0,0.00019972,2]
[359667689,1746234645211,-450.0,0.00019972,2]
[359667690,1746234645221,-450.0,0.00019972,2]
[359667691,1746234645232,-450.0,0.00019972,2]
[359667692,1746234645242,-450.0,0.00019972,2]
[359667693,1746234645252,-450.0,0.00019972,2]
[359667694,1746234645263,-450.0,0.00019972,2]
[359667695,1746234645274,-450.0,0.00019972,2]
[359667696,1746234645283,-450.0,0.00019972,2]
[359667697,1746234645293,-450.0,0.00019972,2]
[359667698,1746234645303,-450.0,0.00019972,2]
[359667699,1746234645313,-450.0,0.00019972,2]
[359667700,1746234645323,-450.0,0.00019972,2]
[359667701,1746234645333,-450.0,0.00019972,2]
[359667702,1746234645343,-450.0,0.00019972,2]
[359667703,1746234645352,-450.0,0.00019972,2]
[359667704,1746234645362,-450.0,0.00019972,2]
[359667705,1746234645372,-450.0,0.00019972,2]
[359667706,1746234645383,-450.0,0.00019972,2]
[359667707,1746234645397,-450.0,0.00019972,2]
[359667708,1746234645407,-450.0,0.00019972,2]
[359667709,1746234645417,-450.0,0.00019972,2]
[359667710,1746234645427,-450.0,0.00019972,2]
[359667711,1746234645437,-450.0,0.00019972,2]
[359667712,1746234645447,-450.0,0.00019972,2]
[359667713,1746234645457,-450.0,0.00019972,2]
[359667714,1746234645468,-450.0,0.00019972,2]
[359667715,1746234645477,-450.0,0.00019972,2]
[359667716,1746234645488,-450.0,0.00019972,2]
[359667717,1746234645498,-359.32732009,0.00019972,2]
[359667718,1746234645508,-450.0,0.00019972,2]
[359667719,1746234645518,-450.0,0.00019972,2]
[359667720,1746234645528,-450.0,0.00019972,2]
[359667721,1746234645537,-450.0,0.00019972,2]
[359667722,1746234645547,-450.0,0.00019972,2]
[359667723,1746234645557,-450.0,0.00019972,2]
[359667724,1746234645566,-450.0,0.00019972,2]
[359667725,1746234645576,-524.14,0.00019972,2]
[359667726,1746234645586,-450.0,0.00019972,2]
[359667727,1746234645596,-450.0,0.00019972,2]
[359667728,1746234645607,-450.0,0.00019972,2]
[359667729,1746234645617,-495.44,0.00019972,2]
[359667730,1746234645626,-450.0,0.00019972,2]
[359667731,1746234645636,-450.0,0.00019972,2]
[359667732,1746234645646,-6565.37,0.00019972,2]
[359667733,1746234645657,-521.19,0.00019972,2]
[359667734,1746234645667,-927.91,0.00019972,2]
[359667735,1746234645677,-450.0,0.00019972,2]
[359667736,1746234645686,-713.92,0.00019972,2]
[359667737,1746234645696,-450.0,0.00019972,2]
[359667738,1746234645705,-450.0,0.00019972,2]
[359667739,1746234645715,-454.84,0.00019972,2]
[359667740,1746234645724,-450.0,0.00019972,2]
[359667741,1746234645734,-450.0,0.00019972,2]
[359667742,1746234645744,-454.86,0.00019972,2]
[359667743,1746234645753,-450.0,0.00019972,2]
[359667744,1746234645765,-450.0,0.00019972,2]
[359667745,1746234645774,-450.0,0.00019972,2]
[359667746,1746234645785,-450.0,0.00019972,2]
[359667747,1746234645796,-637.26,0.00019972,2]
[359667748,1746234645807,-450.0,0.00019972,2]
[359667749,1746234645818,-450.0,0.00019972,2]
[359667750,1746234645827,-450.0,0.00019972,2]
[359667751,1746234645839,-450.0,0.00019972,2]
[359667752,1746234645849,-450.0,0.00019972,2]
[359667753,1746234645859,-486.15,0.00019972,2]
[359667754,1746234645869,-450.0,0.00019972,2]
[359667755,1746234645879,-450.0,0.00019972,2]
[359667756,1746234645890,-450.0,0.00019972,2]
[359667757,1746234645900,-6100.7,0.00019972,2]
[359667758,1746234645910,-450.0,0.00019972,2]
[359667759,1746234645922,-450.0,0.00019972,2]
[359667760,1746234645933,-450.0,0.00019972,2]
[359667761,1746234645943,-450.0,0.00019972,2]
[359667762,1746234645953,-503.98,0.00019972,2]